fUST/lending_fUST_20250213
["ID","MTS","AMOUNT","RATE_DAILY","PERIOD"]
[352956278,1739459467552,-500.0,0.00013997,2]
[352956279,1739459467562,-500.0,0.00013997,2]
[352956280,1739459467572,-500.0,0.00013997,2]
[352956281,1739459467582,-500.91843929,0.00013997,2]
[352956282,1739459467592,-500.0,0.00013997,2]
[352956283,1739459467601,-500.0,0.00013997,2]
[352956284,1739459467612,-892.63,0.00013997,2]
[352956285,1739459467622,-500.0,0.00013997,2]
[352956286,1739459467632,-500.0,0.00013997,2]
[352956287,1739459467646,-503.08391577,0.00013997,2]
[352956288,1739459467657,-500.0,0.00013997,2]
[352956289,1739459467667,-500.0,0.00013997,2]
[352956290,1739459467677,-500.0,0.00013997,2]
[352956291,1739459467687,-500.0,0.00013997,2]
[352956292,1739459467697,-500.0,0.00013997,2]
[352956293,1739459467707,-500.0,0.00013997,2]
[352956294,1739459467717,-500.0,0.00013997,2]
[352956295,1739459467727,-500.0,0.00013997,2]
[352956296,1739459467737,-500.0,0.00013997,2]
[352956297,1739459467747,-500.0,0.00013997,2]
[352956298,1739459467757,-500.0,0.00013997,2]
[352956299,1739459467768,-500.0,0.00013997,2]
[352956300,1739459467778,-500.0,0.00013997,2]
[352956301,1739459467787,-500.0,0.00013997,2]
[352956302,1739459467797,-500.0,0.00013997,2]
[352956303,1739459467807,-500.0,0.00013997,2]
[352956304,1739459467816,-500.0,0.00013997,2]
[352956305,1739459467826,-500.0,0.00013997,2]
[352956306,1739459467836,-500.0,0.00013997,2]
[352956307,1739459467846,-562.97727233,0.00013997,2]
[352956308,1739459467856,-500.0,0.00013997,2]
[352956309,1739459467870,-571.88,0.00013997,2]
[352956310,1739459467880,-500.0,0.00013997,2]
[352956311,1739459467895,-500.0,0.00013997,2]
[352956312,1739459467905,-500.0,0.00013997,2]
[352956313,1739459467915,-501.42846655,0.00013997,2]
[352956314,1739459467925,-500.0,0.00013997,2]
[352956315,1739459467935,-500.0,0.00013997,2]
[352956316,1739459467945,-500.4216547,0.00013997,2]
[352956317,1739459467956,-500.0,0.00013997,2]
[352956318,1739459467966,-503.88816761,0.00013997,2]
[352956319,1739459467976,-500.0,0.00013997,2]
[352956320,1739459467987,-500.0,0.00013997,2]
[352956321,1739459467997,-500.0,0.00013997,2]
[352956322,1739459468007,-500.0,0.00013997,2]
[352956323,1739459468018,-500.0,0.00013997,2]
[352956324,1739459468028,-525.42014988,0.00013997,2]
[352956325,1739459468038,-687.71,0.00013997,2]
[352956326,1739459468048,-500.0,0.00013997,2]
[352956327,1739459468059,-500.0,0.00013997,2]
[352956328,1739459468068,-508.18551941,0.00013997,2]
[352956329,1739459468078,-500.0,0.00013997,2]
[352956330,1739459468087,-500.0,0.00013997,2]
[352956331,1739459468097,-514.74,0.00013997,2]
[352956332,1739459468107,-572.37,0.00013997,2]
[352956333,1739459468117,-500.0,0.00013997,2]
[352956334,1739459468126,-500.0,0.00013997,2]
[352956335,1739459468137,-500.0,0.00013997,2]
[352956336,1739459468147,-500.0,0.00013997,2]
[352956337,1739459468157,-500.0,0.00013997,2]
[352956338,1739459468167,-500.0,0.00013997,2]
[352956339,1739459468176,-500.0,0.00013997,2]
[352956340,1739459468186,-500.0,0.00013997,2]
[352956341,1739459468196,-500.0,0.00013997,2]
[352956342,1739459468205,-500.0,0.00013997,2]
[352956343,1739459468215,-1196.01,0.00013997,2]
[352956344,1739459468225,-500.0,0.00013997,2]
[352956345,1739459468236,-500.0,0.00013997,2]
[352956346,1739459468245,-500.0,0.00013997,2]
[352956347,1739459468256,-509.19372021,0.00013997,2]
[352956348,1739459468269,-500.0,0.00013997,2]
[352956349,1739459468279,-569.32,0.00013997,2]
[352956350,1739459468289,-500.0,0.00013997,2]
[352956351,1739459468299,-500.0,0.00013997,2]
[352956352,1739459468309,-500.0,0.00013997,2]
[352956353,1739459468318,-500.0,0.00013997,2]
[352956354,1739459468328,-500.0,0.00013997,2]
[352956355,1739459468338,-500.0,0.00013997,2]
[352956356,1739459468348,-500.0,0.00013997,2]
[352956357,1739459468358,-500.0,0.00013997,2]
[352956358,1739459468368,-500.0,0.00013997,2]
[352956359,1739459468377,-501.27329937,0.00013997,2]
[352956360,1739459468389,-500.0,0.00013997,2]
[352956361,1739459468399,-503.68112667,0.00013997,2]
[352956362,1739459468408,-500.0,0.00013997,2]
[352956363,1739459468418,-500.0,0.00013997,2]
[352956364,1739459468428,-500.0,0.00013997,2]
[352956365,1739459468438,-500.0,0.00013997,2]
[352956366,1739459468448,-500.0,0.00013997,2]
[352956367,1739459468458,-500.0,0.00013997,2]
[352956368,1739459468468,-582.99,0.00013997,2]
[352956369,1739459468477,-500.0,0.00013997,2]
[352956370,1739459468487,-347.10291414,0.00013997,2]
[352956371,1739459468496,-272.46132601,0.00013997,2]
[352956372,1739459468506,-500.0,0.00013997,2]
[352956373,1739459468516,-500.0,0.00013997,2]
[352956374,1739459468526,-500.0,0.00013997,2]
[352956375,1739459468536,-500.0,0.00013997,2]
[352956376,1739459468546,-500.0,0.00013997,2]
[352956377,1739459468556,-500.0,0.00013997,2]
[352956378,1739459468566,-749.57,0.00013997,2]
[352956379,1739459468576,-285.64645997,0.00013997,2]
[352956380,1739459468597,-214.35354003,0.00013997,2]
[352956381,1739459468608,-500.0,0.00013997,2]
[352956382,1739459468619,-500.0,0.00013997,2]
[352956383,1739459468628,-500.0,0.00013997,2]
[352956384,1739459468639,-500.70329971,0.00013997,2]
[352956385,1739459468649,-500.0,0.00013997,2]
[352956386,1739459468659,-834.37,0.00013997,2]
[352956387,1739459468669,-500.0,0.00013997,2]
[352956388,1739459468678,-500.0,0.00013997,2]
[352956389,1739459468688,-500.94189212,0.00013997,2]
[352956390,1739459468698,-500.0,0.00013997,2]
[352956391,1739459468708,-500.0,0.00013997,2]
[352956392,1739459468718,-500.0,0.00013997,2]
[352956393,1739459468727,-500.0,0.00013997,2]
[352956394,1739459468737,-500.0,0.00013997,2]
[352956395,1739459468747,-571.02,0.00013997,2]
[352956396,1739459468756,-500.0,0.00013997,2]
[352956397,1739459468766,-500.0,0.00013997,2]
[352956398,1739459468775,-500.0,0.00013997,2]
[352956399,1739459468786,-292.90110173,0.00013997,2]
[352956400,1739459468798,-207.09889827,0.00013997,2]
[352956401,1739459468809,-500.0,0.00013997,2]
[352956402,1739459468818,-500.0,0.00013997,2]
[352956403,1739459468827,-501.86537995,0.00013997,2]
[352956404,1739459468838,-500.0,0.00013997,2]
[352956405,1739459468848,-500.0,0.00013997,2]
[352956406,1739459468857,-500.0,0.00013997,2]
[352956407,1739459468868,-500.0,0.00013997,2]
[352956408,1739459468882,-29.39400078,0.00013997,2]
[352956409,1739459469100,-523.28058957,0.00013901,2]
[352956410,1739459469111,-500.0,0.00013915,2]
[352956411,1739459469121,-470.60599922,0.00013997,2]
[352956412,1739459469130,-500.0,0.00013997,2]
[352956413,1739459469142,-500.0,0.00013997,2]
[352956414,1739459469152,-500.60354051,0.00013997,2]
[352956415,1739459469162,-500.0,0.00013997,2]
[352956416,1739459469173,-500.0,0.00013997,2]
[352956417,1739459469183,-500.0,0.00013997,2]
[352956418,1739459469193,-500.0,0.00013997,2]
[352956419,1739459469203,-151.0,0.00013998,2]
[352956420,1739459469213,-500.67868594,0.00013998,2]
[352956421,1739459469223,-500.0,0.00013998,2]
[352956422,1739459469233,-276.35200748,0.00013998,2]
[352956423,1739459469242,-500.0,0.00013998,2]
[352956424,1739459469251,-500.0,0.00013998,2]
[352956425,1739459469264,-500.0,0.00013998,2]
[352956426,1739459469273,-500.0,0.00013998,2]
[352956427,1739459469283,-500.0,0.00013998,2]
[352956428,1739459469292,-500.0,0.00013998,2]
[352956429,1739459469303,-481.52767558,0.00013998,2]
[352956430,1739459469313,-500.0,0.00013998,2]
[352956431,1739459469323,-500.0,0.00013998,2]
[352956432,1739459469332,-500.0,0.00013998,2]
[352956433,1739459469343,-502.60957721,0.00013998,2]
[352956434,1739459469353,-621.47299609,0.00013998,2]
[352956435,1739459469363,-500.0,0.00013998,2]
[352956436,1739459469373,-613.87424384,0.00013998,2]
[352956437,1739459469382,-500.0,0.00013998,2]
[352956438,1739459469395,-505.51264219,0.00013998,2]
[352956439,1739459469404,-500.0,0.00013998,2]
[352956440,1739459469414,-500.0,0.00013998,2]
[352956441,1739459469424,-487.66434281,0.00013998,2]
[352956442,1739459469437,-12.33565719,0.00013998,2]
[352956443,1739459469448,-500.0,0.00013998,2]
[352956444,1739459469457,-500.0,0.00013998,2]
[352956445,1739459469467,-500.0,0.00013998,2]
[352956446,1739459469477,-530.80224929,0.00013998,2]
[352956447,1739459469486,-500.0,0.00013998,2]
[352956448,1739459469496,-500.0,0.00013998,2]
[352956449,1739459469506,-502.66,0.00013998,2]
[352956450,1739459469516,-500.0,0.00013998,2]
[352956451,1739459469526,-760.32,0.00013998,2]
[352956452,1739459469535,-500.0,0.00013998,2]
[352956453,1739459469545,-469.40524712,0.00013998,2]
[352956454,1739459469557,-30.59475288,0.00013998,2]
[352956455,1739459469566,-500.0,0.00013998,2]
[352956456,1739459469576,-39.90546035,0.00013998,2]
[352956457,1739459469588,-460.09453965,0.00013998,2]
[352956458,1739459469599,-500.0,0.00013998,2]
[352956459,1739459469609,-500.0,0.00013998,2]
[352956460,1739459469619,-500.0,0.00013998,2]
[352956461,1739459469629,-500.0,0.00013998,2]
[352956462,1739459469639,-500.0,0.00013998,2]
[352956463,1739459469649,-500.0,0.00013998,2]
[352956464,1739459469659,-566.26,0.00013998,2]
[352956465,1739459469669,-500.0,0.00013998,2]
[352956466,1739459469679,-500.0,0.00013998,2]
[352956467,1739459469689,-500.0,0.00013998,2]
[352956468,1739459469699,-500.0,0.00013998,2]
[352956469,1739459469709,-500.0,0.00013998,2]
[352956470,1739459469719,-500.0,0.00013998,2]
[352956471,1739459469729,-500.0,0.00013998,2]
[352956472,1739459469739,-151.0,0.00013999,2]
[352956473,1739459469749,-151.0,0.00013999,2]
[352956474,1739459469758,-151.0,0.00013999,2]
[352956475,1739459469768,-205.138242,0.00013999,2]
[352956476,1739459469778,-500.0,0.00013999,2]
[352956477,1739459469789,-373.88723422,0.00013999,2]
[352956478,1739459469799,-542.23,0.00013999,2]
[352956479,1739459469809,-331.25164845,0.00013999,2]
[352956480,1739459469819,-500.0,0.00013999,2]
[352956481,1739459469829,-500.0,0.00013999,2]
[352956482,1739459469839,-500.0,0.00013999,2]
[352956483,1739459469849,-500.0,0.00013999,2]
[352956484,1739459469859,-500.0,0.00013999,2]
[352956485,1739459469869,-500.0,0.00013999,2]
[352956486,1739459469879,-500.0,0.00013999,2]
[352956487,1739459469889,-500.0,0.00013999,2]
[352956488,1739459469900,-500.0,0.00013999,2]
[352956489,1739459469911,-500.0,0.00013999,2]
[352956490,1739459469922,-500.0,0.00013999,2]
[352956491,1739459469932,-500.0,0.00013999,2]
[352956492,1739459469942,-500.0,0.00013999,2]
[352956493,1739459469952,-500.0,0.00013999,2]
[352956494,1739459469962,-500.0,0.00013999,2]
[352956495,1739459469971,-500.0,0.00013999,2]
[352956496,1739459469982,-500.0,0.00013999,2]
[352956497,1739459469992,-500.0,0.00013999,2]
[352956498,1739459470002,-566.65,0.00013999,2]
[352956499,1739459470011,-246.48833568,0.00013999,2]
[352956500,1739459470024,-253.51166432,0.00013999,2]
[352956501,1739459470034,-500.0,0.00013999,2]
[352956502,1739459470044,-500.0,0.00013999,2]
[352956503,1739459470054,-504.26,0.00013999,2]
[352956504,1739459470064,-1045.47,0.00013999,2]
[352956505,1739459470073,-500.0,0.00013999,2]
[352956506,1739459470083,-500.0,0.00013999,2]
[352956507,1739459470263,-500.0,0.00013999,2]
[352956508,1739459470273,-500.19,0.00013999,2]
[352956509,1739459470283,-500.0,0.00013999,2]
[352956510,1739459470295,-1644.26,0.00013999,2]
[352956511,1739459470305,-536.74,0.00013999,2]
[352956512,1739459470315,-505.9657073,0.00013999,2]
[352956513,1739459470325,-151.0,0.00014,2]
[352956514,1739459470335,-151.0,0.00014,2]
[352956515,1739459470346,-151.0,0.00014,2]
[352956516,1739459470356,-151.0,0.00014,2]
[352956517,1739459470366,-2000.0,0.00014,2]
[352956518,1739459470381,-549.94,0.00014026,2]
[352956519,1739459470393,-500.0,0.00014026,2]
[352956520,1739459470404,-500.0,0.00014026,2]
[352956521,1739459470415,-500.0,0.00014026,2]
[352956522,1739459470427,-21698.22,0.00014026,2]
[352956523,1739459470437,-1944.18,0.00014026,2]
[352956524,1739459470447,-500.0,0.00014026,2]
[352956525,1739459470457,-500.0,0.00014027,2]
[352956526,1739459470467,-502.60127399,0.00014027,2]
[352956527,1739459470476,-500.0,0.00014027,2]
[352956528,1739459470486,-500.0,0.00014027,2]
[352956529,1739459470495,-500.0,0.00014027,2]
[352956530,1739459470505,-500.0,0.00014027,2]
[352956531,1739459470515,-500.0,0.00014027,2]
[352956532,1739459470526,-500.0,0.00014027,2]
[352956533,1739459470535,-500.0,0.00014027,2]
[352956534,1739459470545,-1229.38,0.00014027,2]
[352956535,1739459470555,-722.01,0.00014027,2]
[352956536,1739459470565,-500.0,0.00014027,2]
[352956537,1739459470575,-500.0,0.00014027,2]
[352956538,1739459470585,-500.0,0.00014027,2]
[352956539,1739459470598,-500.0,0.00014027,2]
[352956540,1739459470608,-500.0,0.00014027,2]
[352956541,1739459470619,-500.0,0.00014027,2]
[352956542,1739459470628,-500.0,0.00014027,2]
[352956543,1739459470639,-500.0,0.00014027,2]
[352956544,1739459470652,-1435.79,0.00014027,2]
[352956545,1739459470662,-500.0,0.00014027,2]
[352956546,1739459470671,-500.0,0.00014027,2]
[352956547,1739459470681,-500.0,0.00014027,2]
[352956548,1739459470691,-737.81,0.00014027,2]
[352956549,1739459470700,-500.0,0.00014027,2]
[352956550,1739459470710,-500.0,0.00014027,2]
[352956551,1739459470719,-500.0,0.00014027,2]
[352956552,1739459470729,-500.0,0.00014027,2]
[352956553,1739459470739,-500.0,0.00014027,2]
[352956554,1739459470749,-553.51,0.00014027,2]
[352956555,1739459470759,-500.0,0.00014027,2]
[352956556,1739459470769,-500.0,0.00014027,2]
[352956557,1739459470779,-500.0,0.00014027,2]
[352956558,1739459470789,-500.0,0.00014027,2]
[352956559,1739459470799,-500.0,0.00014027,2]
[352956560,1739459470808,-554.95128945,0.00014027,2]
[352956561,1739459470818,-500.0,0.00014027,2]
[352956562,1739459470828,-1294.28,0.00014027,2]
[352956563,1739459470838,-500.0,0.00014027,2]
[352956564,1739459470847,-511.05136273,0.00014027,2]
[352956565,1739459470857,-500.0,0.00014027,2]
[352956566,1739459470867,-500.0,0.00014027,2]
[352956567,1739459470877,-500.0,0.00014027,2]
[352956568,1739459470887,-1016.85,0.00014027,2]
[352956569,1739459470899,-500.0,0.00014027,2]
[352956570,1739459470909,-500.0,0.00014027,2]
[352956571,1739459470920,-500.0,0.00014027,2]
[352956572,1739459470930,-500.0,0.00014027,2]
[352956573,1739459470941,-500.0,0.00014027,2]
[352956574,1739459470959,-500.0,0.00014027,2]
[352956575,1739459470974,-500.0,0.00014027,2]
[352956576,1739459470984,-500.0,0.00014027,2]
[352956577,1739459470994,-500.0,0.00014027,2]
[352956578,1739459471004,-500.56,0.00014027,2]
[352956579,1739459471014,-500.0,0.00014027,2]
[352956580,1739459471024,-500.0,0.00014027,2]
[352956581,1739459471033,-1143.73,0.00014027,2]
[352956582,1739459471043,-500.0,0.00014027,2]
[352956583,1739459471053,-500.0,0.00014027,2]
[352956584,1739459471063,-500.0,0.00014027,2]
[352956585,1739459471073,-500.0,0.00014027,2]
[352956586,1739459471084,-500.0,0.00014027,2]
[352956587,1739459471094,-500.0,0.00014027,2]
[352956588,1739459471103,-500.0,0.00014027,2]
[352956589,1739459471113,-500.0,0.00014027,2]
[352956590,1739459471123,-1994.69,0.00014027,2]
[352956591,1739459471133,-500.0,0.00014027,2]
[352956592,1739459471143,-500.0,0.00014027,2]
[352956593,1739459471152,-500.0,0.00014027,2]
[352956594,1739459471162,-1237.37,0.00014027,2]
[352956595,1739459471172,-500.0,0.00014027,2]
[352956596,1739459471181,-505.44,0.00014027,2]
[352956597,1739459471190,-500.0,0.00014027,2]
[352956598,1739459471200,-500.0,0.00014027,2]
[352956599,1739459471209,-500.0,0.00014027,2]
[352956600,1739459471218,-500.0,0.00014027,2]
[352956601,1739459471227,-500.0,0.00014027,2]
[352956602,1739459471237,-500.0,0.00014027,2]
[352956603,1739459471246,-500.0,0.00014027,2]
[352956604,1739459471257,-500.0,0.00014027,2]
[352956605,1739459471270,-500.0,0.00014027,2]
[352956606,1739459471279,-500.0,0.00014027,2]
[352956607,1739459471289,-500.0,0.00014027,2]
[352956608,1739459471298,-559.33,0.00014027,2]
[352956609,1739459471310,-500.0,0.00014027,2]
[352956610,1739459471320,-513.37,0.00014027,2]
[352956611,1739459471331,-523.39,0.00014027,2]
[352956612,1739459471342,-585.05,0.00014027,2]
[352956613,1739459471353,-542.85,0.00014027,2]
[352956614,1739459471363,-500.0,0.00014027,2]
[352956615,1739459471373,-500.0,0.00014027,2]
[352956616,1739459471383,-500.0,0.00014027,2]
[352956617,1739459471393,-500.0,0.00014027,2]
[352956618,1739459471404,-635.84,0.00014027,2]
[352956619,1739459471413,-500.0,0.00014027,2]
[352956620,1739459471423,-1221.89,0.00014027,2]
[352956621,1739459471432,-1100.98,0.00014027,2]
[352956622,1739459471441,-513.1946254,0.00014027,2]
[352956623,1739459471451,-500.0,0.00014027,2]
[352956624,1739459471460,-500.0,0.00014027,2]
[352956625,1739459471470,-500.0,0.00014027,2]
[352956626,1739459471480,-500.0,0.00014027,2]
[352956627,1739459471490,-500.0,0.00014027,2]
[352956628,1739459471500,-501.89557744,0.00014027,2]
[352956629,1739459471509,-500.0,0.00014027,2]
[352956630,1739459471519,-500.0,0.00014027,2]
[352956631,1739459471528,-1280.69,0.00014027,2]
[352956632,1739459471538,-500.0,0.00014027,2]
[352956633,1739459471547,-500.0,0.00014027,2]
[352956634,1739459471556,-500.0,0.00014027,2]
[352956635,1739459471566,-642.43,0.00014027,2]
[352956636,1739459471576,-582.18,0.00014027,2]
[352956637,1739459471586,-1590.54,0.00014027,2]
[352956638,1739459471595,-604.04,0.00014027,2]
[352956639,1739459471605,-500.0,0.00014027,2]
[352956640,1739459471615,-500.0,0.00014027,2]
[352956641,1739459471626,-500.0,0.00014027,2]
[352956642,1739459471635,-523.07,0.00014027,2]
[352956643,1739459471647,-653.81,0.00014027,2]
[352956644,1739459471656,-500.0,0.00014027,2]
[352956645,1739459471666,-500.0,0.00014027,2]
[352956646,1739459471675,-1283.4,0.00014027,2]
[352956647,1739459471685,-1979.89,0.00014027,2]
[352956648,1739459471695,-1558.8,0.00014027,2]
[352956649,1739459471706,-500.0,0.00014027,2]
[352956650,1739459471718,-559.25726399,0.00014027,2]
[352956651,1739459471736,-3251.96,0.00014027,2]
[352956652,1739459471747,-500.0,0.00014027,2]
[352956653,1739459471757,-639.73,0.00014027,2]
[352956654,1739459471767,-500.0,0.00014027,2]
[352956655,1739459471777,-500.0,0.00014027,2]
[352956656,1739459471786,-731.06,0.00014027,2]
[352956657,1739459471802,-390.24881542,0.00014027,2]
[352956658,1739459471813,-500.0,0.00014027,2]
[352956659,1739459471823,-567.83,0.00014027,2]
[352956660,1739459471833,-500.0,0.00014027,2]
[352956661,1739459471843,-500.0,0.00014027,2]
[352956662,1739459471852,-500.0,0.00014027,2]
[352956663,1739459471863,-500.0,0.00014027,2]
[352956664,1739459471872,-583.57,0.00014027,2]
[352956665,1739459471882,-176.96485322,0.00014027,2]
[352956666,1739459471893,-597.41,0.00014027,2]
[352956667,1739459471903,-500.0,0.00014027,2]
[352956668,1739459471913,-500.0,0.00014027,2]
[352956669,1739459471924,-1291.99,0.00014027,2]
[352956670,1739459471935,-500.0,0.00014027,2]
[352956671,1739459471944,-904.91,0.00014027,2]
[352956672,1739459471954,-500.96715317,0.00014027,2]
[352956673,1739459471964,-500.0,0.00014027,2]
[352956674,1739459471973,-500.0,0.00014027,2]
[352956675,1739459471984,-500.0,0.00014027,2]
[352956676,1739459471994,-500.0,0.00014027,2]
[352956677,1739459472004,-377.93769502,0.00014027,2]
[352956678,1739459472014,-500.0,0.00014027,2]
[352956679,1739459472024,-974.18,0.00014027,2]
[352956680,1739459472034,-500.0,0.00014027,2]
[352956681,1739459472044,-500.0,0.00014027,2]
[352956682,1739459472054,-500.0,0.00014027,2]
[352956683,1739459472064,-500.0,0.00014027,2]
[352956684,1739459472074,-500.0,0.00014027,2]
[352956685,1739459472084,-4408.01,0.00014027,2]
[352956686,1739459472094,-500.0,0.00014027,2]
[352956687,1739459472103,-500.0,0.00014027,2]
[352956688,1739459472114,-664.73,0.00014027,2]
[352956689,1739459472123,-500.0,0.00014027,2]
[352956690,1739459472133,-500.0,0.00014027,2]
[352956691,1739459472143,-2545.11,0.00014027,2]
[352956692,1739459472152,-623.55835108,0.00014027,2]
[352956693,1739459472162,-500.0,0.00014027,2]
[352956694,1739459472173,-500.0,0.00014027,2]
[352956695,1739459472183,-7548.39,0.00014027,2]
[352956696,1739459472193,-500.0,0.00014027,2]
[352956697,1739459472204,-500.0,0.00014027,2]
[352956698,1739459472214,-553.42,0.00014027,2]
[352956699,1739459472225,-500.0,0.00014027,2]
[352956700,1739459472234,-1560.53,0.00014027,2]
[352956701,1739459472244,-7508.17,0.00014027,2]
[352956702,1739459472255,-522.64,0.00014027,2]
[352956703,1739459472265,-500.0,0.00014027,2]
[352956704,1739459472275,-500.0,0.00014027,2]
[352956705,1739459472284,-538.57,0.00014027,2]
[352956706,1739459472297,-618.89,0.00014027,2]
[352956707,1739459472307,-2618.47,0.00014027,2]
[352956708,1739459472317,-500.0,0.00014027,2]
[352956709,1739459472327,-670.4,0.00014027,2]
[352956710,1739459472339,-332.31195325,0.00014027,2]
[352956711,1739459472350,-549.91,0.00014027,2]
[352956712,1739459472359,-500.0,0.00014027,2]
[352956713,1739459472370,-726.11,0.00014027,2]
[352956714,1739459472380,-1568.7,0.00014027,2]
[352956715,1739459472391,-500.0,0.00014027,2]
[352956716,1739459472400,-500.0,0.00014027,2]
[352956717,1739459472409,-1770.9,0.00014027,2]
[352956718,1739459472419,-500.0,0.00014027,2]
[352956719,1739459472428,-500.0,0.00014027,2]
[352956720,1739459472438,-500.0,0.00014027,2]
[352956721,1739459472447,-500.0,0.00014027,2]
[352956722,1739459472457,-500.0,0.00014027,2]
[352956723,1739459472466,-1982.06,0.00014027,2]
[352956724,1739459472476,-500.0,0.00014027,2]
[352956725,1739459472486,-500.0,0.00014027,2]
[352956726,1739459472496,-500.0,0.00014027,2]
[352956727,1739459472507,-500.0,0.00014027,2]
[352956728,1739459472516,-500.0,0.00014027,2]
[352956729,1739459472526,-1313.44,0.00014027,2]
[352956730,1739459472536,-500.0,0.00014027,2]
[352956731,1739459472545,-500.0,0.00014027,2]
[352956732,1739459472555,-5323.99,0.00014027,2]
[352956733,1739459472565,-500.0,0.00014027,2]
[352956734,1739459472575,-500.0,0.00014027,2]
[352956735,1739459472586,-4184.05,0.00014027,2]
[352956736,1739459472596,-500.0,0.00014027,2]
[352956737,1739459472607,-626.02,0.00014027,2]
[352956738,1739459472617,-3026.64,0.00014027,2]
[352956739,1739459472628,-1077.99,0.00014027,2]
[352956740,1739459472638,-500.0,0.00014027,2]
[352956741,1739459472794,-500.0,0.00014027,2]
[352956742,1739459472806,-500.0,0.00014027,2]
[352956743,1739459472815,-500.0,0.00014027,2]
[352956744,1739459472825,-500.0,0.00014027,2]
[352956745,1739459472835,-2033.68,0.00014027,2]
[352956746,1739459472844,-390.28147854,0.00014027,2]
[352956747,1739459472854,-500.0,0.00014027,2]
[352956748,1739459472863,-1825.01,0.00014027,2]
[352956749,1739459472872,-500.0,0.00014027,2]
[352956750,1739459472882,-500.0,0.00014027,2]
[352956751,1739459472892,-500.0,0.00014027,2]
[352956752,1739459472902,-612.71,0.00014027,2]
[352956753,1739459472911,-589.76,0.00014027,2]
[352956754,1739459472921,-500.0,0.00014027,2]
[352956755,1739459472930,-535.4,0.00014027,2]
[352956756,1739459472940,-4312.63,0.00014027,2]
[352956757,1739459472949,-500.0,0.00014027,2]
[352956758,1739459472959,-500.0,0.00014027,2]
[352956759,1739459472968,-500.0,0.00014027,2]
[352956760,1739459472978,-764.74,0.00014027,2]
[352956761,1739459472987,-126.12133504,0.00014027,2]
[352956762,1739459473231,-1000.0,0.00014027,2]
[352956763,1739459473243,-636.52866496,0.00014027,2]
[352956764,1739459473254,-500.0,0.00014027,2]
[352956765,1739459473267,-9404.19,0.00014027,2]
[352956766,1739459473276,-500.0,0.00014027,2]
[352956767,1739459473286,-281.40957189,0.00014027,2]
[352956768,1739459473590,-218.59042811,0.00014027,2]
[352956769,1739459473600,-500.0,0.00014027,2]
[352956770,1739459473610,-500.0,0.00014027,2]
[352956771,1739459473619,-2673.12,0.00014027,2]
[352956772,1739459473630,-605.71,0.00014027,2]
[352956773,1739459473641,-598.07,0.00014027,2]
[352956774,1739459473652,-500.0,0.00014027,2]
[352956775,1739459473661,-500.0,0.00014027,2]
[352956776,1739459473671,-1554.33,0.00014027,2]
[352956777,1739459473681,-500.0,0.00014027,2]